Cogmind - Beta 15 @@@ ROGUE MODE // 2025.05.24 @ 17:17:40 Player: Epsilon 11 Result: Destroyed self with Subdweller Shrapnel Launcher Performance ------------- Evolutions (0) 0 Regions Visited (2) 400 Robots Destroyed (11) 55 Value Destroyed (344) 344 Prototype IDs (0) 0 Alien Tech Used (0) 0 Bonus (0) 0 TOTAL SCORE: 799 Bonus ------- None Cogmind --------- Core Integrity 0/250 Matter 200/300 Energy 195/200 System Corruption 0% Temperature Cool (6) Movement Treading (260) Ox1 Location -10/Subcaves Parts ------- > --- POWER (1) -------- Subdweller Power Source > --- PROPULSION (2) --- Spiked Treads > --- UTILITY (2) ------ Small Storage Unit Light Armor Plating > --- WEAPON (2) ------- Subdweller Shrapnel Launcher > --- INVENTORY (8) ---- Light Ion Engine Wheel Compact Wheel Subdweller Monowheel Structural Scanner Subdweller Optics Mining Claw Peak State ------------ > --- POWER ------------ Subdweller Power Source > --- PROPULSION ------- Spiked Treads Subdweller Monowheel > --- UTILITY ---------- Small Storage Unit Subdweller Optics > --- WEAPON ----------- Medium Laser Battle Rifle > --- INVENTORY -------- Light Ion Engine Wheel Compact Wheel Subdweller Monowheel Structural Scanner Light Armor Plating Battle Rifle Mining Claw [Rating: 13] Favorites ----------- Power Light Ion Engine Engine Light Ion Engine Propulsion Wheel Treads Spiked Treads Wheel Wheel Utility Small Storage Unit Device Subdweller Optics Storage Small Storage Unit Protection Light Armor Plating Weapon Medium Laser Energy Gun Medium Laser Ballistic Gun Light Assault Rifle Launcher Subdweller Shrapnel Launcher Slashing Weapon Mining Claw Build | -11 -10 -10 ------- Run | Yrd Mat Sub Slots Evolved . | . . . Power . | . . . Propulsion . | . . . Utility . | . . . Weapon . | . . . Parts Attached 18 | 6 3 9 Power 2 | 1 . 1 Engine 2 | 1 . 1 Core . | . . . Reactor . | . . . Propulsion 4 | 2 . 2 Treads 1 | . . 1 Leg . | . . . Wheel 3 | 2 . 1 Hover . | . . . Flight . | . . . Utility 4 | 1 1 2 Device 1 | . . 1 Storage 1 | 1 . . Processor . | . . . Hackware . | . . . Protection 2 | . 1 1 Artifact . | . . . Weapon 8 | 2 2 4 Energy Gun 3 | 1 2 . Energy Cannon . | . . . Ballistic Gun 3 | 1 . 2 Ballistic Cannon . | . . . Launcher 1 | . . 1 Special Weapon . | . . . Impact Weapon . | . . . Slashing Weapon 1 | . . 1 Piercing Weapon . | . . . Special Melee Weapon . | . . . Unidentified Prototypes . | . . . Parts Lost 8 | . . 8 Power 1 | . . 1 Propulsion 2 | . . 2 Utility 1 | . . 1 Weapon 4 | . . 4 Highest Loss Streak 4 | . . 4 To Critical Strikes . | . . . Average Backups 4 | . 2 6 Power . | . 1 1 Propulsion 1 | . . 2 Utility 1 | . . 2 Weapon . | . . . Tool/Special . | . . . Unused Backups 6 | . . 6 Power 1 | . . 1 Propulsion 3 | . . 3 Utility 1 | . . 1 Weapon . | . . . Tool/Special 1 | . . 1 Average Slot Usage (%) 93 | . 91 95 Engine 13 | . 14 13 Treads 2 | . . 3 Wheel 25 | . 28 23 Device 6 | . . 11 Storage 14 | . 14 14 Protection 3 | . 5 2 Energy Gun 17 | . 19 15 Ballistic Gun 5 | . 8 3 Slashing Weapon 3 | . . 6 Peak Build Rating 13 | 6 7 13 Average Rating 8 | 4 6 9 On Entrance 4 | . 6 7 Naked Turns . | . . . Heaviest Build 16 | 10 15 16 Greatest Support 30 | 20 20 30 Greatest Overweight (x) . | . . . Average Overweight (x) . | . . . Largest Inventory Capacity 8 | 8 8 8 Average Capacity 7 | 7 8 8 Most Carried 8 | 1 6 8 Average Carried 4 | . 2 6 Final Capacity 8 | 8 8 8 Final Carried 7 | 1 6 7 Class Distribution -------------------- 100% | Mutant Dominant Class ---------------- Mutant | -10/Materials Mutant | -10/Subcaves Resources | -11 -10 -10 ----------- Run | Yrd Mat Sub Matter Collected 392 | 195 91 106 Remotely . | . . . Salvage Created 367 | . 154 213 Parts 35 | . 14 21 Haulers Intercepted . | . . . Recyclers Shooed . | . . . Parts Field Recycled . | . . . Retrieved Matter . | . . . Parts Self-Destructed 6 | . . 6 Prevented . | . . . Kills | -11 -10 -10 ------- Run | Yrd Mat Sub Combat Hostiles Destroyed 10 | . 4 6 Guns 8 | . 4 4 AOE 2 | . . 2 Classes Destroyed 4 | . 3 1 Watcher 1 | . 1 . Swarmer 2 | . 2 . Grunt 2 | . 2 . Subdweller 6 | . . 6 Best Kill Streak 3 | . 3 3 Combat Bots Only 3 | . 3 3 Max Kills in Single Turn 2 | . 2 1 Gunslinging 1 | . 1 . Exploded 1 | . . 1 Melee . | . . . Uniques/NPCs Destroyed . | . . . Combat | -11 -10 -10 -------- Run | Yrd Mat Sub Hostile Shots Fired 71 | . 23 48 Missed 19 | . 5 14 Hits 52 | . 18 34 Projectile 52 | . 18 34 AOE 1 | . . 1 Critical Strikes 3 | . . 3 Damage Taken 1115 | . 193 922 Core 255 | . 29 226 Absorbed by Shields . | . . . Core Remaining (%) 100 | 100 . . Volleys Fired 62 | . 36 26 Largest 2 | . 2 2 Hottest 90 | . 80 90 Shots Fired 107 | . 67 40 Gun 103 | . 67 36 Cannon . | . . . Launcher 4 | . . 4 Special . | . . . Kinetic 38 | . 26 12 Thermal 50 | . 31 19 Explosive . | . . . Electromagnetic 19 | . 10 9 Robot Hit Streak 13 | . 6 13 Robot Miss Streak 5 | . 5 2 Penetration Max . | . . . Secondary Targets 1 | . 1 . Max Gunslinging Chain 1 | . 1 . Shots Hit Robots 69 | . 36 33 Core Hits 29 | . 12 17 Critical Kills . | . . . Critical Parts Destroyed . | . . . Critical Strikes . | . . . Melee Attacks 6 | . . 6 Impact . | . . . Slashing 6 | . . 6 Piercing . | . . . Sneak Attacks 1 | . . 1 Combat Hostiles . | . . . Follow-up Attacks . | . . . Damage Inflicted 1345 | . 418 927 Guns 723 | . 378 345 Cannons . | . . . Explosions 622 | . 40 582 Melee . | . . . Ramming . | . . . Kinetic 780 | . 117 663 Thermal 426 | . 238 188 Explosive . | . . . Electromagnetic 139 | . 63 76 Impact . | . . . Slashing . | . . . Piercing . | . . . Highest Corruption . | . . . Average Corruption . | . . . Corruption Purged . | . . . Corruption Blocked . | . . . Overload Shots . | . . . Overflow Damage . | . . . Projectiles . | . . . Explosions . | . . . Melee . | . . . Knockbacks . | . . . Impact . | . . . Kinetic . | . . . Secondary . | . . . Self-Inflicted Damage 92 | . . 92 Shots 4 | . . 4 Rammed . | . . . Targets Rammed . | . . . Kicked . | . . . Crushed . | . . . Highest Temperature 285 | . 207 285 Average Temperature 86 | . 67 153 Received Heat Transfer 534 | . 90 444 Siege Activations . | . . . Martial Activations . | . . . Shielding Activations . | . . . Robots Disrupted . | . . . Combat Hostiles . | . . . Robots Corrupted . | . . . Combat Hostiles . | . . . Parts Fried 1 | . . 1 Impact Corruptions . | . . . Robots Melted . | . . . Combat Hostiles . | . . . Parts Melted 1 | . 1 . Heat Transferred 1055 | . 500 555 Parts Sabotaged . | . . . Parts Stolen . | . . . Parts Stripped . | . . . Power Chain Reactions 1 | . 1 . Alert | -11 -10 -10 ------- Run | Yrd Mat Sub Maximum Alert Level . | . . . Low Security (%) 100 | 100 100 . Level 1 . | . . . Level 2 . | . . . Level 3 . | . . . Level 4 . | . . . Level 5 . | . . . High Security . | . . . Max Security . | . . . Peak Influence 145 | . 145 . Initial . | . . . Average 62 | . 69 . Influence Increases 181 | . 181 . Destroy 0b10 Robot/C 80 | . 80 . Destroy 0b10 Robot/NC 5 | . 5 . Destroy Leader 12 | . 12 . Successful Hack 4 | . 4 . Destroy Structure 5 | . 5 . Lose Combat Pursuer 75 | . 75 . Influence Decreases 181 | . 147 34 Entered New Map 17 | . . 17 Time Decay 164 | . 147 17 Squads Dispatched 1 | . 1 . Investigation . | . . . Extermination . | . . . Reinforcement 1 | . 1 . Assault . | . . . Garrison . | . . . Intercept . | . . . Searches Triggered . | . . . Construction Impeded . | . . . Haulers Reinforced . | . . . Active Scanning Responses . | . . . Cargo Convoy Interrupts . | . . . Stealth | -11 -10 -10 --------- Run | Yrd Mat Sub Distress Signals 1 | . 1 . Communications Jammed . | . . . Distress Signals . | . . . Times Spotted 19 | . 11 8 Peak Tracking Total 7 | . 7 4 Tactical Retreats 2 | . 2 . Traps | -11 -10 -10 ------- Run | Yrd Mat Sub Traps Triggered . | . . . Indirectly . | . . . Trap Hack Attempts . | . . . Triggered . | . . . Disarmed . | . . . Reprogrammed . | . . . Reused . | . . . Traps Extracted . | . . . Installed . | . . . Triggered . | . . . Machines | -11 -10 -10 ---------- Run | Yrd Mat Sub Machines Disabled . | . . . Max in Single Turn . | . . . Machines Repaired . | . . . Machines Dismantled . | . . . Machines Sabotaged . | . . . Overloaded Fab Kills . | . . . Hacking | -11 -10 -10 --------- Run | Yrd Mat Sub Machines Accessed 2 | . 2 . Terminals 2 | . 2 . Fabricators . | . . . Repair Stations . | . . . Recycling Units . | . . . Scanalyzers . | . . . Garrison Access . | . . . Total Hacks 7 | . 7 . Successful 3 | . 3 . Failed 4 | . 4 . Catastrophic 1 | . 1 . Database Lockouts . | . . . Manual 7 | . 7 . Terminals 7 | . 7 . Fabricators . | . . . Repair Stations . | . . . Recycling Units . | . . . Scanalyzers . | . . . Garrison Access . | . . . Terminal Hacks . | . . . Fabricator Hacks . | . . . Repair Station Hacks . | . . . Recycling Unit Hacks . | . . . Scanalyzer . | . . . Garrison Access Hacks . | . . . Unauthorized Hacks 3 | . 3 . Terminals 3 | . 3 . Botnet 1 | . 1 . Skim 2 | . 2 . Fabricators . | . . . Repair Stations . | . . . Recycling Units . | . . . Scanalyzers . | . . . Garrison Access . | . . . Data Cores Recovered . | . . . Used . | . . . Hacking Detections 2 | . 2 . Full Trace Events . | . . . Feedback Events . | . . . Feedback Blocked . | . . . Robot Schematics Acquired . | . . . Robots Built . | . . . Authchips . | . . . Time . | . . . Total Robot Build Rating . | . . . Part Schematics Acquired . | . . . Parts Built . | . . . Authchips . | . . . Time . | . . . Total Part Build Rating . | . . . Parts Repaired . | . . . Time . | . . . Parts Recycled . | . . . Recycled Matter . | . . . Retrieved Matter . | . . . Retrieved Components . | . . . Parts Scanalyzed . | . . . Part Schematics Acquired . | . . . Parts Damaged . | . . . Bothacking | -11 -10 -10 ------------ Run | Yrd Mat Sub Used RIF Installer . | . . . Robots Hacked . | . . . Non-combat . | . . . Combat . | . . . Robot Hacks Applied . | . . . Relay Couplers Released . | . . . Fabnet Peak Effective % . | . . . Robots Rewired . | . . . Allies Hacked . | . . . Hacks Repelled . | . . . Allies | -11 -10 -10 -------- Run | Yrd Mat Sub Total Allies . | . . . Largest Group . | . . . Highest-Rated Group . | . . . Highest-Rated Ally . | . . . Total Orders . | . . . Ally Attacks . | . . . Total Damage . | . . . Kills . | . . . Allies Corrupted . | . . . Allies Melted . | . . . Intel | -11 -10 -10 ------- Run | Yrd Mat Sub Active Infowar (turns) 238 | . . 238 Optics 238 | . . 238 Robot Analysis Total . | . . . Derelict Logs Recovered . | . . . Drone Launches . | . . . Drone Recoveries . | . . . Exploration | -11 -10 -10 ------------- Run | Yrd Mat Sub Turns Passed 827 | 42 361 424 Spaces Moved 644 | 41 309 294 Core 3 | 3 . . Treads 46 | . . 46 Legs . | . . . Wheels 595 | 38 309 248 Hover . | . . . Flight . | . . . Fastest Speed 50 | 50 80 80 Average Speed 90 | 77 80 103 Slowest Speed 160 | 80 80 160 Overloaded Moves . | . . . Propulsion Burnouts . | . . . Robots Hopped . | . . . Potential Cave-ins . | . . . Cave-ins Triggered . | . . . Exploration Rate (%) 22 | 4 41 23 Regions Visited 2 Branch Regions 1 Pre-discovered Areas . | . . . Known Exits Taken . | . . . Unknown Exits Taken 2 | 1 1 . Scrap Searched 2 | . . 2 Spaces Dug . | . . . Terrain Destroyed 18 | . 5 13 Melee . | . . . Projectile . | . . . AOE 18 | . 5 13 Terrain Rammed . | . . . Walls Destroyed . | . . . Machines Disabled . | . . . Actions | -11 -10 -10 --------- Run | Yrd Mat Sub Total 768 | 47 360 361 Wait 25 | . 6 19 Move 642 | 40 308 294 Hop . | . . . Pick Up 9 | 1 5 3 Fast Attach 15 | 6 3 6 Attach 2 | . . 2 Detach 2 | . . 2 Swap 1 | . . 1 Drop 4 | . 2 2 Fire 62 | . 36 26 Melee 6 | . . 6 Ram . | . . . Kick . | . . . Crush . | . . . Escape Stasis . | . . . Rewire . | . . . Trap . | . . . Miscellaneous . | . . . Route ------- -11/Scrapyard -10/Materials (discovered 3 exits: [*Mat] / [*Min] / [*Sub]) -10/Subcaves (discovered 1 exit: [*Mat]) History --------- Turn | Location | Event 3 | -11/Scrapyard | Discovered new exit (range 16) 43 | -11/Scrapyard | Entered Materials 192 | -10/Materials | Discovered new exit (range 14) 266 | -10/Materials | Discovered new exit (range 7) 301 | -10/Materials | Build established: Mutant 333 | -10/Materials | Discovered new exit (range 4) 404 | -10/Materials | Entered Subcaves 405 | -10/Subcaves | Approached by a straggling Scientist 416 | -10/Subcaves | Ambushed by Subdwellers from Twisted Machinery 495 | -10/Subcaves | Lost 4 parts (1p1n1u1w) 562 | -10/Subcaves | Discovered new exit (range 19) 706 | -10/Subcaves | Disturbed a concealed Subdweller 710 | -10/Subcaves | Core integrity fell below 50% 817 | -10/Subcaves | Disturbed a concealed Subdweller 827 | -10/Subcaves | Core integrity fell below 20% 828 | -10/Subcaves | Destroyed self with Subdweller Shrapnel Launcher Last Messages --------------- 00739_ EW-JSQ(R) destroyed. 00742_ Acquired 12 matter. 00747_ Dropped Welding Torch. 00747_ Acquired Battle Rifle. 00769_ Dropped Corrupted Sub. Monowheel. 00770_ Acquired Sub. Monowheel. 00803_ Med. Laser destroyed. 00809_ Battle Rifle destroyed. 00810_ JM-4P5(R) affixes Scrap Shield Fragment to Scrap Shield. 00811_ JM-4P5(R) destroyed. 00816_ Acquired 14 matter. 00817_ Subatomizers dissect the Sub. Monowheel. 00817_ QB-BZF(R) angrily emerges from the Twisted Machinery. 00817_ Battle Rifle destroyed. 00817_ Sub. Monowheel destroyed. 00819_ Acquired Sub. Shrapnel Launcher. 00822_ RQ-CW4(R) destroyed. 00823_ B5-OQ4(R) affixes Scrap Shield Fragment to Scrap Shield. 00823_ QB-BZF(R) affixes Scrap Shield Fragment to Scrap Shield. 00828_ B5-OQ4(R) destroyed. Map ----- +----------------------------------------------------+ | # ## ##???????????????????????? | | # ## ####?? ???????????????? | | ????# #???????????????? | | ????# ### ## #???????????????? | | ????# #### ##?? ## #???????????????? | | #????# ##?####???? #???????????????? | | #???## #?## ##???? #????????????????? | | #??## ### ##???? #?????????????????? | | #### ## #??? ##?????????????????? | | ###? #??????????????????? | | ## ###????????????????? | | ##### ?????????? | | ## #????????? | | ## ### ### " ???????? | | ##### ##?###?# """ ####### ##?????? ??? | | #???###??# ###""" ##??????????????? ??? | | #????????# "##"" #####?######??#?? #????? | | ##????????#"""" ## ### ### # ## # ##???? | | #????????##""" ### ##; #??? | | #??????## #### ## ? | | #?????# ## ## ? | | ##????# ### ## #????? ### #?? | | #????# ###?## & #??????????????? | | ####???# #?????## R ## #?????? | | ##??????######???????# #????? | | ?????????????????????# @ #????? | | ?????????????????????# # = ## #????? | | ?????????????????????# ## R #??????????????? | | ?????????????????????# #### & ## #??????????????? | | ?????????????????????## &*&%&!##??#??????????????? | | ??????????????????????#########??????????????????? | | ?????????????????????????????????????????????????? | | ?????????????????????????????????????????????????? | | ?????????????????????????????????????????????????? | | ?????????????????????????????????????????????????? | | ?????????????????????????????????????????????????? | | ?????????????????????????????????????????????????? | | ?????????????????????????????????????????????????? | | ?????????????????????????????????????????????????? | | ?????????????????????????????????????????????????? | | ?????????????????????????????????????????????????? | | ?????????????????????????????????????????????????? | | #????????????????????????????????????????????????? | | #????????????????????????????????????????????????? | | #????????????????????????????????????????????????? | | #????????????????????????????????????????????????? | | #????????????????????????????????????????????????? | | #????????????????????????????????????????????????? | | #????????????????????????????????????????????????? | | #????????????????????????????????????????????????? | +----------------------------------------------------+ Best States ------------- Heat Dissipation 25 Energy Generation 10 Energy Capacity 200 Matter Stores 300 Matter Capacity 300 Sight Range 21 Terrain Scan Density 10 Armor Coverage 150 Evasion (%) 44 Recoil Reduction 1 Item Schematics ----------------- None Robot Schematics ------------------ None Fabricated ------------ Nothing Repaired ---------- Nothing Alien Tech Used ----------------- None Achievements -------------- None Challenges ------------ None Game ------ Seed CannonSmallCompactor Manual? 0 Play Time 00:08:52 Cumulative 302.0 hours Start 2025.05.24 @ 17:09:30 End 2025.05.24 @ 17:17:40 Sessions 1 Manual Loads 0 Difficulty Rogue Special Mode None Game No. 143 Rogue 100 Adventurer 43 Explorer 0 Win Type - Total 6 Types 4/0/1/0/0/0/0/1/0/0 Lore% 82 Gallery% 71 Achievement% 65 Wizard Run 0 Options --------- Layout 0 ASCII 0 Keyboard 0 Movement Numpad Keybinds 0 Fullscreen 1 Font 24/Smallcaps Map View 76x50 Zoom Use 0% Tactical HUD 1 Map Filters NONE Filters NONE Steam 1 RUN: 10526cb6-be43-4e05-be42-d666b5d89db8